[Event "2nd Irena Warakomska Memorial-A"]
[Site "Suwalki"]
[Date "2018.08.02"]
[Round "2"]
[White "Grebeniuk, Semen"]
[Black "Maj, Pawel"]
[Result "1-0"]
[ECO "A05"]
[WhiteElo "2306"]
[BlackElo "1521"]
[Annotator "NA"]
[PlyCount "67"]
[EventDate "2018.08.01"]
[EventType "swiss"]
[EventCountry "POL"]
[SourceTitle "playchess.com"]
[Source "ChessBase"]
[SourceQuality "1"]
[TimeControl "40/5400+30:1800+30"]

1. Nf3 {[%emt 0:00:00]} Nf6 {[%emt 0:00:00]} 2. g3 {[%emt 0:00:00]} g6 {[%emt 0:00:00]} 3. Bg2 {[%emt 0:00:00]} Bg7 {[%emt 0:00:00]} 4. O-O {[%emt 0:00:07]} O-O {[%emt 0:00:00]} 5. d3 {[%emt 0:00:52]} d6 6. e4 {[%emt 0:01:44]} c5 {[%emt 0:02:25]} 7. Nbd2 {[%emt 0:01:16]} Nc6 {[%emt 0:00:08]} 8. c3 {[%emt 0:01:27]} e5 {[%emt 0:01:29]} 9. a3 {[%emt 0:16:13]} d5 {[%emt 0:03:18]} 10. b4 dxe4 {[%emt 0:03:54]} 11. Nxe4 {[%emt 0:01:45]} Nxe4 {[%emt 0:05:22]} 12. dxe4 cxb4 {[%emt 0:03:47]} 13. axb4 {[%emt 0:00:36]} Be6 14. b5 {[%emt 0:07:18]} Nb8 {[%emt 0:04:34]} 15. Ba3 {[%emt 0:06:36]} Qxd1 {[%emt 0:02:16]} 16. Rfxd1 {[%emt 0:00:08]} Rc8 {[%emt 0:00:20]} 17. Ng5 {[%emt 0:13:11]} Bd7 {[%emt 0:05:25]} 18. Bh3 {[%emt 0:05:39]} Bxh3 {[%emt 0:00:35]} 19. Nxh3 Bf8 {[%emt 0:02:02]} 20. f3 {[%emt 0:04:35]} Bxa3 {[%emt 0:01:01]} 21. Rxa3 {[%emt 0:00:01]} Kf8 {[%emt 0:00:24]} 22. Rd5 {[%emt 0:10:20]} f6 {[%emt 0:01:23]} 23. f4 exf4 {[%emt 0:00:45]} 24. Nxf4 {[%emt 0:04:53]} Ke7 {[%emt 0:00:38]} 25. Rd4 {[%emt 0:01:46]} Nd7 {[%emt 0:02:53]} 26. Rda4 {[%emt 0:00:26]} Nc5 27. Rc4 {[%emt 0:06:12]} g5 {[%emt 0:10:15]} 28. Nd5+ {[%emt 0:00:25]} Ke6 {[%emt 0:00:09]} 29. b6 {[%emt 0:01:15]} Kd6 {[%emt 0:13:11]} 30. bxa7 Rc6 {[%emt 0:01:37]} 31. Rb4 {[%emt 0:05:20]} Ke5 32. Nb6 {[%emt 0:00:58]} Rxb6 {[%emt 0:04:41]} 33. Rxb6 {[%emt 0:00:09]} Kxe4 {[%emt 0:00:06]} 34. Ra5 {[%emt 0:00:56]} 1-0

[Event "2nd Irena Warakomska Memorial-A"]
[Site "Suwalki"]
[Date "2018.08.02"]
[Round "2"]
[White "Goluch, Piotr"]
[Black "Fiedorek, Michal"]
[Result "1-0"]
[ECO "D41"]
[WhiteElo "2301"]
[BlackElo "1970"]
[Annotator "ChessBase"]
[PlyCount "87"]
[EventDate "2018.08.01"]
[EventType "swiss"]
[EventCountry "POL"]
[SourceTitle "playchess.com"]
[Source "ChessBase"]
[SourceQuality "1"]
[TimeControl "40/5400+30:1800+30"]

1. d4 d5 2. Nf3 Nf6 3. c4 e6 4. Nc3 c5 5. cxd5 Nxd5 6. e3 Nxc3 7. bxc3 Be7 8. Bd3 O-O 9. Qc2 h6 10. Rb1 Qc7 11. O-O Nd7 12. Qe2 b6 13. e4 cxd4 14. cxd4 Bb7 15. Bd2 Rac8 16. Rfc1 Qb8 17. Re1 Rfd8 18. e5 Nf8 19. Be3 Qa8 20. Nd2 Rc3 21. Rb3 Rxb3 22. axb3 f5 23. exf6 Bxf6 24. Qg4 Kh8 25. Ne4 Bxd4 26. Ng5 Bxe3 27. Nf7+ Kg8 28. Nxd8 Bxf2+ 29. Kxf2 Qxd8 30. Bc4 Bd5 31. Qd4 Qg5 32. Bxd5 Qxd5 33. Qxd5 exd5 34. Re7 a6 35. Ke3 b5 36. Kd4 Ng6 37. Ra7 Nf4 38. Rxa6 Ne2+ 39. Kc5 d4 40. Rd6 Nc1 41. b4 d3 42. Kxb5 Kf7 43. Kc4 Ke7 44. Rd4 1-0

[Event "2nd Irena Warakomska Memorial-A"]
[Site "Suwalki"]
[Date "2018.08.02"]
[Round "2"]
[White "Szostko, Jakub"]
[Black "Wacior, Maciej"]
[Result "1/2-1/2"]
[ECO "B12"]
[WhiteElo "2299"]
[BlackElo "2081"]
[Annotator "NA"]
[PlyCount "47"]
[EventDate "2018.08.01"]
[EventType "swiss"]
[EventCountry "POL"]
[SourceTitle "playchess.com"]
[Source "ChessBase"]
[SourceQuality "1"]
[TimeControl "40/5400+30:1800+30"]

1. e4 {[%emt 0:00:00]} c6 {[%emt 0:00:00]} 2. d4 {[%emt 0:00:00]} d5 {[%emt 0:00:00]} 3. e5 {[%emt 0:00:00]} c5 {[%emt 0:00:00]} 4. dxc5 {[%emt 0:00:02]} Nc6 {[%emt 0:00:52]} 5. a3 {[%emt 0:00:23]} Nxe5 {[%emt 0:02:22]} 6. b4 {[%emt 0:00:32]} Nf6 {[%emt 0:02:52]} 7. Bb2 {[%emt 0:00:59]} Ng6 {[%emt 0:01:14]} 8. Nf3 {[%emt 0:04:46]} e6 {[%emt 0:02:47]} 9. g3 {[%emt 0:06:10]} Be7 {[%emt 0:01:07]} 10. h4 {[%emt 0:01:34]} h5 {[%emt 0:03:13]} 11. Be2 {[%emt 0:05:09]} Qc7 {[%emt 0:01:35]} 12. Nc3 {[%emt 0:09:14]} Bd7 {[%emt 0:00:52]} 13. Nb5 {[%emt 0:04:27]} Qb8 {[%emt 0:00:50]} 14. Bd3 {[%emt 0:10:28]} a6 {[%emt 0:00:57]} 15. Bxg6 {[%emt 0:01:31]} Bxb5 {[%emt 0:02:41]} 16. Bd3 {[%emt 0:00:56]} b6 {[%emt 0:04:09]} 17. Bxb5+ {[%emt 0:06:09]} axb5 {[%emt 0:00:01]} 18. c6 {[%emt 0:01:31]} Qc7 {[%emt 0:02:43]} 19. Qe2 {[%emt 0:01:39]} Qxc6 {[%emt 0:00:17]} 20. Ne5 {[%emt 0:00:33]} Qc7 {[%emt 0:00:27]} 21. Qxb5+ {[%emt 0:01:24]} Kf8 {[%emt 0:01:01]} 22. Qc6 {[%emt 0:12:58]} Qxc6 {[%emt 0:01:48]} 23. Nxc6 {[%emt 0:00:05]} Rc8 {[%emt 0:00:01]} 24. Nxe7 {[%emt 0:02:57]} 1/2-1/2

[Event "2nd Irena Warakomska Memorial-A"]
[Site "Suwalki"]
[Date "2018.08.02"]
[Round "2"]
[White "Sliwicka, Alicja"]
[Black "Lewtak, Dominik"]
[Result "0-1"]
[ECO "B33"]
[WhiteElo "2293"]
[BlackElo "2177"]
[Annotator "RC"]
[PlyCount "110"]
[EventDate "2018.08.01"]
[EventType "swiss"]
[EventCountry "POL"]
[SourceTitle "playchess.com"]
[Source "ChessBase"]
[SourceQuality "1"]
[TimeControl "40/5400+30:1800+30"]

1. e4 c5 2. Nf3 Nc6 3. d4 cxd4 4. Nxd4 Nf6 5. Nc3 e5 6. Ndb5 d6 7. Bg5 a6 8. Na3 b5 9. Nd5 Be7 10. Bxf6 Bxf6 11. c4 b4 12. Nc2 O-O 13. g3 a5 14. h4 Be6 15. Bh3 a4 16. Kf1 b3 17. axb3 axb3 18. Nce3 Rxa1 19. Qxa1 Nd4 20. Kg2 g6 21. Qa7 Bxd5 22. Nxd5 Bg7 23. Ra1 Qb8 24. Qe7 Re8 25. Qg5 Nc2 26. Ra6 Ne1+ 27. Kf1 Nd3 28. Bd7 Rf8 29. Bb5 Nc5 30. Ra1 Nxe4 31. Qe3 Nc5 32. Bc6 e4 33. Nc3 Qb4 34. Bd5 Bxc3 35. bxc3 b2 36. Rb1 Qb3 37. Qd2 Na4 38. Kg2 Qxc3 39. Qxc3 Nxc3 40. Rxb2 Nxd5 41. cxd5 Kg7 42. Rb6 Rd8 43. Rb4 f5 44. f3 exf3+ 45. Kxf3 Kf6 46. Rb7 h5 47. Kf4 Ra8 48. Rd7 Ra4+ 49. Kf3 Ke5 50. Rg7 Rg4 51. Ra7 Kxd5 52. Ra5+ Ke6 53. Ra6 Ke5 54. Ra1 d5 55. Ra5 f4 0-1

[Event "2nd Irena Warakomska Memorial-A"]
[Site "Suwalki"]
[Date "2018.08.02"]
[Round "2"]
[White "Bugalski, Michal"]
[Black "Walkusz, Witoslaw"]
[Result "0-1"]
[ECO "A16"]
[WhiteElo "2263"]
[BlackElo "2121"]
[Annotator "NA"]
[PlyCount "58"]
[EventDate "2018.08.01"]
[EventType "swiss"]
[EventCountry "POL"]
[SourceTitle "playchess.com"]
[Source "ChessBase"]
[SourceQuality "1"]
[TimeControl "40/5400+30:1800+30"]

1. c4 {[%emt 0:00:00]} Nf6 {[%emt 0:00:31]} 2. g3 {[%emt 0:00:06]} g6 {[%emt 0:00:20]} 3. Bg2 {[%emt 0:00:06]} d5 {[%emt 0:00:07]} 4. cxd5 {[%emt 0:01:54]} Nxd5 {[%emt 0:00:05]} 5. Nc3 {[%emt 0:00:05]} Nb6 {[%emt 0:01:10]} 6. Nf3 {[%emt 0:00:47]} Nc6 {[%emt 0:00:52]} 7. d3 {[%emt 0:03:09]} Bg7 {[%emt 0:00:20]} 8. a3 {[%emt 0:02:42]} O-O {[%emt 0:00:41]} 9. Be3 {[%emt 0:10:33]} e5 {[%emt 0:03:30]} 10. h4 {[%emt 0:04:48]} h5 {[%emt 0:14:54]} 11. Ng5 {[%emt 0:24:29]} Nd4 {[%emt 0:03:45]} 12. Nce4 {[%emt 0:07:57]} Nd5 {[%emt 0:05:08]} 13. Bxd4 {[%emt 0:04:35]} exd4 {[%emt 0:00:06]} 14. Qb3 {[%emt 0:01:02]} c6 {[%emt 0:04:06]} 15. O-O {[%emt 0:02:04]} Qe7 {[%emt 0:15:10]} 16. Rfe1 {[%emt 0:03:14]} Kh8 {[%emt 0:04:17]} 17. Rac1 {[%emt 0:09:26]} f6 {[%emt 0:04:17]} 18. Nh3 {[%emt 0:01:13]} Bh6 {[%emt 0:07:37]} 19. Rc4 {[%emt 0:08:22]} Bxh3 {[%emt 0:00:42]} 20. Bxh3 {[%emt 0:00:10]} f5 {[%emt 0:00:31]} 21. Nc5 {[%emt 0:04:22]} b6 {[%emt 0:03:00]} 22. Na6 {[%emt 0:02:25]} f4 {[%emt 0:02:31]} 23. Rxc6 {[%emt 0:05:47]} fxg3 {[%emt 0:00:11]} 24. fxg3 {[%emt 0:00:20]} Qe3+ {[%emt 0:03:19]} 25. Kh2 {[%emt 0:00:02]} Qf2+ {[%emt 0:03:49]} 26. Bg2 {[%emt 0:00:08]} Ne3 {[%emt 0:01:13]} 27. Rg1 {[%emt 0:00:06]} Ng4+ {[%emt 0:00:18]} 28. Kh1 {[%emt 0:00:04]} Qxg3 {[%emt 0:00:14]} 29. a4 {[%emt 0:00:03]} Qh2# {[%emt 0:00:13]} 0-1

[Event "2nd Irena Warakomska Memorial-A"]
[Site "Suwalki"]
[Date "2018.08.02"]
[Round "2"]
[White "Tomaszewski, Roman"]
[Black "Jankowiak, Tomasz"]
[Result "1-0"]
[ECO "A20"]
[WhiteElo "2258"]
[BlackElo "2117"]
[Annotator "NA"]
[PlyCount "61"]
[EventDate "2018.08.01"]
[EventType "swiss"]
[EventCountry "POL"]
[SourceTitle "playchess.com"]
[Source "ChessBase"]
[SourceQuality "1"]
[TimeControl "40/5400+30:1800+30"]

1. c4 {[%emt 0:00:00]} e5 {[%emt 0:00:00]} 2. g3 {[%emt 0:00:00]} Nf6 {[%emt 0:00:00]} 3. Bg2 {[%emt 0:00:25]} d5 {[%emt 0:00:09]} 4. cxd5 {[%emt 0:03:49]} Nxd5 {[%emt 0:00:07]} 5. Nc3 {[%emt 0:01:58]} Nb6 {[%emt 0:00:14]} 6. Nf3 {[%emt 0:17:02]} Nc6 {[%emt 0:00:07]} 7. O-O {[%emt 0:03:46]} Be7 {[%emt 0:00:33]} 8. d3 {[%emt 0:02:45]} O-O {[%emt 0:00:29]} 9. Be3 {[%emt 0:00:29]} Be6 {[%emt 0:03:20]} 10. Qc1 {[%emt 0:00:14]} Nd5 {[%emt 0:05:44]} 11. Rd1 {[%emt 0:20:32] A29: English Opening: Four Knights Variation with 4 g3} Qd7 {[%emt 0:17:18]} 12. Bd2 {[%emt 0:17:02]} (12. d4 Nxe3 13. fxe3 exd4 14. exd4 Bg4 15. d5 Bxf3 16. exf3 Ne5 17. Ne4 Bd6 18. Qc3 Qb5 {½-½ (26) Adhiban,B (2636)-Szabo,G (2548) Zalakaros 2015}) 12... f6 {[%emt 0:19:41]} 13. Ne4 $146 {[%emt 0:01:08]} ({Predecessor:} 13. a3 Rac8 14. Ne4 b6 15. b4 Nd4 16. Nxd4 exd4 17. e3 f5 18. exd4 fxe4 19. dxe4 Nf6 20. Be3 Bh3 21. f3 Bxg2 22. Kxg2 Qb5 23. e5 Qe2+ 24. Bf2 Ng4 25. Rf1 {0-1 (25) Espineira Gonzalez,P (2213)-Espineira Gonzalez,D (2371) Sanxenxo 2012}) 13... b6 {[%emt 0:01:40]} 14. a3 {[%emt 0:00:13]} a5 {[%emt 0:03:19]} 15. Nc3 {[%emt 0:02:35]} Rfc8 {[%emt 0:12:41]} 16. Qc2 {[%emt 0:03:23]} Nd4 {[%emt 0:02:52]} 17. Nxd4 {[%emt 0:00:07]} exd4 {[%emt 0:00:03]} 18. Nxd5 {[%emt 0:00:28]} Bxd5 {[%emt 0:00:06]} 19. Bxd5+ {[%emt 0:03:05]} Qxd5 {[%emt 0:00:06]} 20. Rac1 {[%emt 0:03:52]} c5 {[%emt 0:11:24]} 21. a4 {[%emt 0:04:59]} Rd8 {[%emt 0:08:44]} 22. e4 {[%emt 0:01:32]} dxe3 {[%emt 0:00:23]} 23. Bxe3 {[%emt 0:00:00]} Rac8 {[%emt 0:02:40]} 24. b3 {[%emt 0:00:00]} Kf7 {[%emt 0:02:14]} 25. Qc4 {[%emt 0:04:11]} Qe6 {[%emt 0:00:16]} 26. Qb5 {[%emt 0:06:35]} Rd5 $11 {[%emt 0:07:05]} 27. Re1 {[%emt 0:00:19]} c4 {[%emt 0:01:24]} 28. Qa6 {[%emt 0:00:27]} Rxd3 {[%emt 0:00:38]} 29. Bc5 {[%emt 0:00:57]} Bxc5 {[%emt 0:00:40]} 30. Rxe6 {[%emt 0:00:05]} Kxe6 {[%emt 0:00:14]} 31. Qxc8+ {[%emt 0:00:18]} 1-0

[Event "2nd Irena Warakomska Memorial-A"]
[Site "Suwalki"]
[Date "2018.08.02"]
[Round "2"]
[White "Mulet, Piotr"]
[Black "Lisowski, Krzysztof"]
[Result "1-0"]
[ECO "B30"]
[WhiteElo "2238"]
[BlackElo "2072"]
[Annotator "NA"]
[PlyCount "107"]
[EventDate "2018.08.01"]
[EventType "swiss"]
[EventCountry "POL"]
[SourceTitle "playchess.com"]
[Source "ChessBase"]
[SourceQuality "1"]
[TimeControl "40/5400+30:1800+30"]

1. e4 {[%emt 0:00:00]} c5 {[%emt 0:00:00]} 2. Nf3 {[%emt 0:00:00]} Nc6 {[%emt 0:00:00]} 3. c3 {[%emt 0:00:00]} d5 {[%emt 0:00:28]} 4. exd5 {[%emt 0:00:13]} Qxd5 {[%emt 0:00:07]} 5. d4 {[%emt 0:00:04]} Bg4 {[%emt 0:00:31]} 6. Be2 {[%emt 0:00:06]} cxd4 {[%emt 0:00:05]} 7. cxd4 {[%emt 0:00:33]} e6 {[%emt 0:00:07]} 8. Nc3 {[%emt 0:00:08]} Qa5 {[%emt 0:00:18]} 9. d5 {[%emt 0:00:59] B22: Sicilian: 2 c3} exd5 {[%emt 0:00:40]} 10. Nd4 {[%emt 0:00:05]} Bxe2 {[%emt 0:16:29]} 11. Qxe2+ {[%emt 0:00:29]} Be7 {[%emt 0:03:11]} 12. Nxc6 {[%emt 0:00:14]} bxc6 {[%emt 0:00:08]} 13. O-O {[%emt 0:00:09]} Rd8 {[%emt 0:33:17] [#]} 14. Bf4 $146 {[%emt 0:36:05]} ({Predecessor:} 14. Re1 d4 15. Ne4 Qb5 16. Qxb5 cxb5 {1-0 (39) Vysochin,S (2550)-Bogatyrev,S (2277) Yuzhny 2009}) 14... Nf6 {[%emt 0:15:56]} 15. Rfe1 {[%emt 0:01:00]} Rd7 {[%emt 0:00:06]} 16. Bd6 {[%emt 0:03:25]} Qd8 {[%emt 0:03:42]} 17. Bc5 {[%emt 0:00:49]} Kf8 {[%emt 0:06:35]} 18. Bd4 {[%emt 0:00:40]} c5 {[%emt 0:06:02]} 19. Be5 {[%emt 0:00:09]} h5 {[%emt 0:03:08]} 20. Rad1 {[%emt 0:01:36]} d4 {[%emt 0:06:21]} 21. Nb5 {[%emt 0:01:45]} Nd5 {[%emt 0:01:07]} 22. Qf3 {[%emt 0:01:52]} Rh6 {[%emt 0:00:37]} 23. Na3 {[%emt 0:02:18]} h4 {[%emt 0:00:39]} 24. h3 {[%emt 0:00:28]} Kg8 {[%emt 0:00:25]} 25. Nc4 {[%emt 0:00:16]} Bg5 {[%emt 0:01:11]} 26. Re2 {[%emt 0:04:19]} Re6 {[%emt 0:00:24]} 27. Rde1 {[%emt 0:00:13]} Nb6 {[%emt 0:01:18]} 28. Nd6 {[%emt 0:03:56]} Rdxd6 {[%emt 0:00:23]} 29. Bxd6 {[%emt 0:00:05]} Qxd6 {[%emt 0:00:21]} 30. Rxe6 {[%emt 0:00:05]} fxe6 {[%emt 0:00:03]} 31. Qg4 {[%emt 0:00:05]} Qf4 {[%emt 0:00:49]} 32. Qxe6+ {[%emt 0:00:10]} Kh7 {[%emt 0:00:31]} 33. Re4 {[%emt 0:01:45]} Qc1+ {[%emt 0:00:35]} 34. Kh2 {[%emt 0:00:05]} Bf4+ {[%emt 0:00:14]} 35. g3 {[%emt 0:00:05]} hxg3+ {[%emt 0:00:22]} 36. Kg2 {[%emt 0:00:08]} gxf2 {[%emt 0:01:14]} 37. Qf5+ {[%emt 0:00:15]} g6 {[%emt 0:00:22]} 38. Qf7+ {[%emt 0:02:58]} Kh6 {[%emt 0:00:06]} 39. Qxf4+ {[%emt 0:00:08]} Qxf4 {[%emt 0:00:03]} 40. Rxf4 {[%emt 0:00:00]} Kg5 {[%emt 0:00:00]} 41. Rxf2 {[%emt 0:00:23]} Nd5 {[%emt 0:05:11]} 42. Rf7 {[%emt 0:01:44]} Ne3+ {[%emt 0:12:46]} 43. Kf3 {[%emt 0:00:34]} Nc4 {[%emt 0:06:09]} 44. Rc7 {[%emt 0:03:06]} Nd2+ $18 {[%emt 0:01:51]} (44... Nxb2 45. Rxc5+ Kh4) 45. Ke2 {[%emt 0:00:38]} Ne4 {[%emt 0:00:09]} 46. Kd3 {[%emt 0:07:15]} Kf4 {[%emt 0:00:52]} 47. Rf7+ {[%emt 0:00:18]} Ke5 {[%emt 0:00:08]} 48. Rxa7 {[%emt 0:01:47]} Nf2+ {[%emt 0:03:36]} 49. Kc4 {[%emt 0:00:41]} d3 {[%emt 0:01:52]} 50. Rd7 {[%emt 0:00:55]} Ke4 {[%emt 0:01:52]} 51. Re7+ {[%emt 0:00:19]} Kf3 {[%emt 0:00:37]} 52. Rf7+ {[%emt 0:00:27]} Ke3 {[%emt 0:00:48]} 53. Rxf2 {[%emt 0:00:03]} Kxf2 {[%emt 0:00:09]} 54. Kxd3 {[%emt 0:00:04]} 1-0

[Event "2nd Irena Warakomska Memorial-A"]
[Site "Suwalki"]
[Date "2018.08.02"]
[Round "2"]
[White "Zgadzaj, Rafal"]
[Black "Kowalski, Igor"]
[Result "0-1"]
[ECO "A40"]
[WhiteElo "2154"]
[BlackElo "2294"]
[Annotator "NA"]
[PlyCount "98"]
[EventDate "2018.08.01"]
[EventType "swiss"]
[EventCountry "POL"]
[SourceTitle "playchess.com"]
[Source "ChessBase"]
[SourceQuality "1"]
[TimeControl "40/5400+30:1800+30"]

1. d4 {[%emt 0:00:00]} e6 {[%emt 0:00:00]} 2. g3 {[%emt 0:00:58]} Nf6 {[%emt 0:00:00]} 3. Bg2 {[%emt 0:00:03]} d5 {[%emt 0:00:00]} 4. Nf3 {[%emt 0:01:33]} Be7 {[%emt 0:00:34]} 5. O-O {[%emt 0:00:54]} O-O {[%emt 0:00:00]} 6. c4 {[%emt 0:00:12]} dxc4 {[%emt 0:00:00] LiveBook: 7787 Games} 7. Na3 {[%emt 0:01:09]} Bxa3 {[%emt 0:03:53]} 8. bxa3 {[%emt 0:00:01]} Nbd7 {[%emt 0:01:10] E05: Open Catalan: 5 Nf3 Be7} 9. Qc2 {[%emt 0:03:02]} (9. a4 a5 10. Ba3 Re8 11. Rc1 Nb6 12. Ne5 Nfd5 13. e4 Nb4 14. Qh5 Qe7 15. Nxc4 Nxc4 16. Rxc4 {1-0 (28) Jones,G (2671)-Friedel,J (2524) Reykjavik 2017}) 9... Nb6 {[%emt 0:00:26]} 10. Rd1 $146 {[%emt 0:00:27]} ({Predecessor:} 10. e4 Bd7 11. e5 Nfd5 12. Ng5 g6 13. Ne4 Bc6 14. Bg5 Qc8 15. Qd2 c3 16. Nxc3 Nxc3 17. Bxc6 bxc6 18. Qxc3 {½-½ (75) Gabrielian,A (2557)-Batchuluun,T (2523) St Petersburg 2014}) 10... Bd7 {[%emt 0:00:06]} 11. Re1 {[%emt 0:05:02]} Ba4 {[%emt 0:00:32]} 12. Qb2 {[%emt 0:01:02]} Bc6 {[%emt 0:01:37]} 13. Bg5 {[%emt 0:14:03]} Be4 {[%emt 0:08:10]} 14. Rac1 {[%emt 0:22:43]} Qd5 {[%emt 0:03:29]} 15. Bxf6 {[%emt 0:00:48]} gxf6 {[%emt 0:00:05]} 16. Red1 {[%emt 0:06:22]} Na4 {[%emt 0:02:23]} 17. Qb4 {[%emt 0:06:14]} b5 {[%emt 0:01:04]} 18. Ne1 {[%emt 0:00:22]} Bxg2 {[%emt 0:06:33]} 19. Nxg2 {[%emt 0:00:02]} a5 {[%emt 0:01:58]} 20. Qe7 {[%emt 0:01:08]} Qd8 {[%emt 0:00:20]} 21. Qxd8 {[%emt 0:00:26]} Rfxd8 {[%emt 0:00:05]} 22. Nf4 {[%emt 0:00:44]} b4 {[%emt 0:00:54]} 23. e3 {[%emt 0:05:03]} Nb2 {[%emt 0:05:53]} 24. Rf1 {[%emt 0:03:55]} e5 {[%emt 0:03:56]} 25. Rc2 {[%emt 0:01:50]} c3 {[%emt 0:00:57]} 26. Ne2 {[%emt 0:00:37]} Ra6 {[%emt 0:14:47]} 27. Rfc1 {[%emt 0:05:36]} Nc4 {[%emt 0:05:04]} 28. Nxc3 {[%emt 0:00:17]} bxc3 {[%emt 0:00:57]} 29. Rxc3 {[%emt 0:00:02]} Nd2 {[%emt 0:00:45]} 30. dxe5 {[%emt 0:03:27]} fxe5 {[%emt 0:00:08]} 31. Rxc7 {[%emt 0:00:18]} Rd3 {[%emt 0:05:31]} 32. Kg2 {[%emt 0:08:04]} Rxa3 {[%emt 0:02:05]} 33. R1c2 {[%emt 0:00:42]} Ne4 {[%emt 0:07:32]} 34. Kf3 {[%emt 0:00:53]} Ra4 {[%emt 0:00:42]} 35. h4 {[%emt 0:05:08]} Rd6 {[%emt 0:03:42]} 36. Re7 {[%emt 0:02:01]} Rd2 {[%emt 0:00:17]} 37. Rec7 {[%emt 0:00:56]} Kg7 {[%emt 0:01:57]} 38. g4 {[%emt 0:00:37]} h6 {[%emt 0:02:54]} 39. R7c4 {[%emt 0:00:14]} Rxc4 {[%emt 0:00:12]} 40. Rxc4 {[%emt 0:00:00]} Nxf2 {[%emt 0:00:00]} 41. Ra4 $19 {[%emt 0:00:55]} e4+ {[%emt 0:12:43]} 42. Kg3 {[%emt 0:05:29]} Re2 {[%emt 0:08:16]} 43. Rxa5 {[%emt 0:03:38]} Nd3 {[%emt 0:00:47]} 44. a4 {[%emt 0:03:04]} Rxe3+ {[%emt 0:00:04]} 45. Kg2 {[%emt 0:00:19]} Nf4+ {[%emt 0:00:10]} 46. Kf2 {[%emt 0:00:27]} Rf3+ {[%emt 0:00:04]} 47. Ke1 {[%emt 0:00:33]} e3 {[%emt 0:00:05]} 48. Rf5 {[%emt 0:01:31]} e2 {[%emt 0:00:05]} 49. Kd2 {[%emt 0:00:13]} Rd3+ {[%emt 0:00:09]} 0-1

[Event "2nd Irena Warakomska Memorial-A"]
[Site "Suwalki"]
[Date "2018.08.02"]
[Round "2"]
[White "Praczukowski, Stanislaw"]
[Black "Kyc, Jerzy"]
[Result "1/2-1/2"]
[ECO "D83"]
[WhiteElo "2136"]
[BlackElo "2283"]
[Annotator "ChessBase"]
[PlyCount "83"]
[EventDate "2018.08.01"]
[EventType "swiss"]
[EventCountry "POL"]
[SourceTitle "playchess.com"]
[Source "ChessBase"]
[SourceQuality "1"]
[TimeControl "40/5400+30:1800+30"]

1. d4 {[%emt 0:00:00]} Nf6 {[%emt 0:00:00]} 2. c4 {[%emt 0:00:00]} g6 {[%emt 0:00:00]} 3. Nc3 {[%emt 0:00:00]} d5 {[%emt 0:00:00]} 4. Bf4 {[%emt 0:00:23]} Bg7 {[%emt 0:00:04]} 5. e3 {[%emt 0:00:24]} O-O {[%emt 0:02:43]} 6. Rc1 {[%emt 0:00:17]} c5 {[%emt 0:10:27]} 7. dxc5 {[%emt 0:01:07]} Be6 {[%emt 0:10:25]} 8. Nf3 {[%emt 0:01:18]} dxc4 {[%emt 0:00:36]} 9. Qxd8 {[%emt 0:00:39]} Rxd8 {[%emt 0:00:04]} 10. Ng5 {[%emt 0:01:16]} Bd5 {[%emt 0:00:35]} 11. e4 {[%emt 0:05:10]} Bc6 {[%emt 0:04:25]} 12. Bxc4 {[%emt 0:03:17]} e6 {[%emt 0:02:08]} 13. f3 {[%emt 0:02:41]} h6 {[%emt 0:00:32]} 14. Nh3 {[%emt 0:00:37]} Nh5 {[%emt 0:14:03]} 15. Be3 {[%emt 0:02:42]} Nd7 {[%emt 0:00:37]} 16. Nf2 {[%emt 0:05:03]} Ne5 {[%emt 0:15:28]} 17. Be2 {[%emt 0:04:08]} g5 {[%emt 0:02:02]} 18. g3 {[%emt 0:05:04]} Ng6 {[%emt 0:07:15]} 19. Nd3 {[%emt 0:17:08]} a5 {[%emt 0:02:16]} 20. O-O {[%emt 0:05:32]} f5 {[%emt 0:04:49]} 21. Rfd1 {[%emt 0:08:20]} Bxc3 {[%emt 0:03:47]} 22. Rxc3 {[%emt 0:01:20]} fxe4 {[%emt 0:00:21]} 23. fxe4 {[%emt 0:02:05]} Nf6 {[%emt 0:01:27]} 24. Nf2 {[%emt 0:01:54]} Nxe4 {[%emt 0:00:16]} 25. Rxd8+ {[%emt 0:05:58]} Rxd8 {[%emt 0:00:27]} 26. Nxe4 {[%emt 0:00:07]} Bxe4 {[%emt 0:00:06]} 27. Ra3 {[%emt 0:00:37]} Ne5 {[%emt 0:08:45]} 28. Rxa5 {[%emt 0:05:58]} Nf3+ {[%emt 0:01:55]} 29. Bxf3 {[%emt 0:05:38]} Bxf3 {[%emt 0:00:01]} 30. h4 {[%emt 0:00:39]} gxh4 {[%emt 0:01:16]} 31. gxh4 {[%emt 0:00:07]} Kg7 {[%emt 0:00:55]} 32. Ra3 {[%emt 0:01:06]} Rd1+ {[%emt 0:00:15]} 33. Kf2 {[%emt 0:00:08]} Bd5 {[%emt 0:00:13]} 34. Bf4 {[%emt 0:02:07]} Kg6 {[%emt 0:01:35]} 35. Rg3+ {[%emt 0:03:53]} Kh5 {[%emt 0:00:03]} 36. a3 {[%emt 0:01:21]} Rb1 {[%emt 0:00:36]} 37. Be5 {[%emt 0:06:21]} Kxh4 {[%emt 0:00:10]} 38. Bg7 {[%emt 0:00:35]} Rc1 {[%emt 0:00:48]} 39. Rg6 {[%emt 0:00:37]} Rxc5 {[%emt 0:00:46]} 40. Rxh6+ {[%emt 0:00:00]} Kg5 {[%emt 0:00:00]} 41. Rh8 {[%emt 0:03:00]} Kf4 {[%emt 0:00:38]} 42. Rh4+ {[%emt 0:00:22]} 1/2-1/2